[Event "*** Titled Tuesday Blitz"]
[Site "Chess.com"]
[Date "2021.03.09"]
[Round "9"]
[White "GM_Huschenbeth"]
[Black "federicosellitti"]
[Result "1/2-1/2"]
[WhiteElo "2625"]
[BlackElo "2535"]
[TimeControl "180+1"]
[EndTime "11:49:38 PST"]
[Termination "Game drawn by repetition"]

1. e4 {[%clk 0:03:00.9]} 1... c5 {[%clk 0:02:59.9]} 2. f3 {[%clk 0:03:00.3]}
2... d5 {[%clk 0:02:58.8]} 3. Nc3 {[%clk 0:02:56.4]} 3... d4 {[%clk 0:02:56.8]}
4. Nce2 {[%clk 0:02:55.8]} 4... e5 {[%clk 0:02:55.1]} 5. Ng3 {[%clk 0:02:46]}
5... h5 {[%clk 0:02:50]} 6. Bc4 {[%clk 0:02:44.5]} 6... h4 {[%clk 0:02:48.6]} 7.
N3e2 {[%clk 0:02:40.5]} 7... Nc6 {[%clk 0:02:48.2]} 8. d3 {[%clk 0:02:40.1]}
8... Nf6 {[%clk 0:02:39.2]} 9. f4 {[%clk 0:02:38.8]} 9... exf4 {[%clk
0:02:26.1]} 10. Bxf4 {[%clk 0:02:37]} 10... Ng4 {[%clk 0:02:24.5]} 11. Nf3
{[%clk 0:02:35]} 11... h3 {[%clk 0:02:22.4]} 12. g3 {[%clk 0:02:27]} 12... Be7
{[%clk 0:02:22.3]} 13. Qd2 {[%clk 0:02:12.8]} 13... f6 {[%clk 0:02:09.2]} 14.
Qc1 {[%clk 0:01:14.8]} 14... g5 {[%clk 0:02:07.4]} 15. Bd2 {[%clk 0:01:15]}
15... Nce5 {[%clk 0:02:02.2]} 16. O-O {[%clk 0:01:08.7]} 16... Nxc4 {[%clk
0:01:25.8]} 17. dxc4 {[%clk 0:01:08.8]} 17... f5 {[%clk 0:01:26.4]} 18. exf5
{[%clk 0:01:06.2]} 18... Bxf5 {[%clk 0:01:23.7]} 19. Bxg5 {[%clk 0:00:59.7]}
19... Bxg5 {[%clk 0:01:03.6]} 20. Qxg5 {[%clk 0:00:59.4]} 20... Qxg5 {[%clk
0:01:03.8]} 21. Nxg5 {[%clk 0:01:00.3]} 21... Ne3 {[%clk 0:01:04.5]} 22. Rf2
{[%clk 0:01:00.9]} 22... Rg8 {[%clk 0:00:59.3]} 23. Nf3 {[%clk 0:00:50.8]} 23...
O-O-O {[%clk 0:00:59.1]} 24. Nf4 {[%clk 0:00:48.5]} 24... Nxc2 {[%clk
0:00:56.8]} 25. Rc1 {[%clk 0:00:42.6]} 25... Ne3 {[%clk 0:00:56.7]} 26. Ne5
{[%clk 0:00:36.5]} 26... d3 {[%clk 0:00:46.2]} 27. Rd2 {[%clk 0:00:36]} 27...
Rge8 {[%clk 0:00:43.7]} 28. Nexd3 {[%clk 0:00:32.5]} 28... Ng4 {[%clk
0:00:41.5]} 29. Rcd1 {[%clk 0:00:27.8]} 29... Rd4 {[%clk 0:00:38.8]} 30. b3
{[%clk 0:00:23.3]} 30... b6 {[%clk 0:00:37]} 31. Kf1 {[%clk 0:00:16.3]} 31...
Ne3+ {[%clk 0:00:36.3]} 32. Kf2 {[%clk 0:00:15.4]} 32... Nxd1+ {[%clk
0:00:36.7]} 33. Rxd1 {[%clk 0:00:16.3]} 33... Red8 {[%clk 0:00:36.5]} 34. Ke3
{[%clk 0:00:16.8]} 34... Re8+ {[%clk 0:00:31.9]} 35. Kf2 {[%clk 0:00:17]} 35...
Bxd3 {[%clk 0:00:27.2]} 36. Rxd3 {[%clk 0:00:13]} 36... Red8 {[%clk 0:00:19.4]}
37. Rxd4 {[%clk 0:00:12.5]} 37... Rxd4 {[%clk 0:00:19.1]} 38. Ke2 {[%clk
0:00:12.9]} 38... a5 {[%clk 0:00:11.3]} 39. Nxh3 {[%clk 0:00:12.9]} 39... a4
{[%clk 0:00:11.5]} 40. Nf4 {[%clk 0:00:13.4]} 40... b5 {[%clk 0:00:11.1]} 41.
cxb5 {[%clk 0:00:12.4]} 41... axb3 {[%clk 0:00:11.7]} 42. axb3 {[%clk
0:00:13.3]} 42... Rb4 {[%clk 0:00:12.2]} 43. Nd3 {[%clk 0:00:11.9]} 43... Rxb5
{[%clk 0:00:10.5]} 44. Kf2 {[%clk 0:00:05.7]} 44... Kd7 {[%clk 0:00:09.2]} 45.
h4 {[%clk 0:00:05.7]} 45... Kd6 {[%clk 0:00:09]} 46. Nc1 {[%clk 0:00:05.4]}
46... Ke5 {[%clk 0:00:08.5]} 47. Kf3 {[%clk 0:00:04.4]} 47... Rb8 {[%clk
0:00:08.3]} 48. h5 {[%clk 0:00:03.3]} 48... Rf8+ {[%clk 0:00:04.7]} 49. Kg4
{[%clk 0:00:03.7]} 49... Rg8+ {[%clk 0:00:05.3]} 50. Kh4 {[%clk 0:00:04.2]}
50... Ke4 {[%clk 0:00:03.9]} 51. h6 {[%clk 0:00:03.8]} 51... Kf3 {[%clk
0:00:03.6]} 52. Nd3 {[%clk 0:00:02.3]} 52... Kg2 {[%clk 0:00:01.2]} 53. Nxc5
{[%clk 0:00:01.3]} 53... Rxg3 {[%clk 0:00:01.3]} 54. Kh5 {[%clk 0:00:02]} 54...
Rh3+ {[%clk 0:00:01.8]} 55. Kg6 {[%clk 0:00:02.3]} 55... Rc3 {[%clk 0:00:02.4]}
56. Ne6 {[%clk 0:00:01.1]} 56... Rg3+ {[%clk 0:00:02.4]} 57. Ng5 {[%clk
0:00:02]} 57... Kf2 {[%clk 0:00:02.2]} 58. h7 {[%clk 0:00:02.9]} 58... Ke3
{[%clk 0:00:02.8]} 59. Kg7 {[%clk 0:00:03.5]} 59... Kf4 {[%clk 0:00:03.7]} 60.
h8=Q {[%clk 0:00:03.6]} 60... Rxg5+ {[%clk 0:00:04.3]} 61. Kf6 {[%clk
0:00:04.2]} 61... Rf5+ {[%clk 0:00:04.7]} 62. Kg6 {[%clk 0:00:04.1]} 62... Rb5
{[%clk 0:00:05]} 63. Kf7 {[%clk 0:00:04.6]} 63... Rb7+ {[%clk 0:00:04.7]} 64.
Ke6 {[%clk 0:00:05.1]} 64... Rb6+ {[%clk 0:00:04.6]} 65. Kd5 {[%clk 0:00:05.7]}
65... Rxb3 {[%clk 0:00:05.2]} 66. Kc4 {[%clk 0:00:06.5]} 66... Rf3 {[%clk
0:00:04.8]} 67. Qf6+ {[%clk 0:00:06.8]} 67... Kg3 {[%clk 0:00:05.7]} 68. Qc6
{[%clk 0:00:07.5]} 68... Kf2 {[%clk 0:00:06.6]} 69. Qc5+ {[%clk 0:00:07.5]}
69... Kg3 {[%clk 0:00:06.8]} 70. Qg5+ {[%clk 0:00:08]} 70... Kf2 {[%clk
0:00:06.8]} 71. Kd4 {[%clk 0:00:08.9]} 71... Rg3 {[%clk 0:00:03.6]} 72. Qf4+
{[%clk 0:00:08.6]} 72... Kg2 {[%clk 0:00:04.2]} 73. Ke4 {[%clk 0:00:08.2]} 73...
Kh3 {[%clk 0:00:04.7]} 74. Qh6+ {[%clk 0:00:07.2]} 74... Kg2 {[%clk 0:00:05.3]}
75. Qd2+ {[%clk 0:00:08.1]} 75... Kh3 {[%clk 0:00:05.4]} 76. Qh6+ {[%clk
0:00:08.3]} 76... Kg2 {[%clk 0:00:05.6]} 77. Kf4 {[%clk 0:00:09.2]} 77... Rf3+
{[%clk 0:00:05.7]} 78. Kg4 {[%clk 0:00:09.1]} 78... Rg3+ {[%clk 0:00:06.2]} 79.
Kf5 {[%clk 0:00:09.6]} 79... Rf3+ {[%clk 0:00:06.7]} 80. Ke4 {[%clk 0:00:10.3]}
80... Rg3 {[%clk 0:00:07.3]} 1/2-1/2

[Event "*** Titled Tuesday Blitz"]
[Site "Chess.com"]
[Date "2021.03.09"]
[Round "9"]
[White "NikolaN98"]
[Black "mbojan"]
[Result "1-0"]
[WhiteElo "2537"]
[BlackElo "2614"]
[TimeControl "180+1"]
[EndTime "11:49:39 PST"]
[Termination "NikolaN98 won on time"]

1. e4 {[%clk 0:02:45.8]} 1... g6 {[%clk 0:03:00.9]} 2. d4 {[%clk 0:02:43.3]}
2... Bg7 {[%clk 0:03:01.5]} 3. Nc3 {[%clk 0:02:43.1]} 3... d6 {[%clk 0:03:02.2]}
4. h4 {[%clk 0:02:42.2]} 4... h6 {[%clk 0:03:01.8]} 5. h5 {[%clk 0:02:40.1]}
5... g5 {[%clk 0:03:01.9]} 6. f4 {[%clk 0:02:40.2]} 6... gxf4 {[%clk 0:03:02.5]}
7. Bxf4 {[%clk 0:02:40.4]} 7... Nc6 {[%clk 0:03:03.1]} 8. Nf3 {[%clk 0:02:38.1]}
8... Bg4 {[%clk 0:03:03.1]} 9. d5 {[%clk 0:02:34.1]} 9... Ne5 {[%clk 0:03:03.1]}
10. Bb5+ {[%clk 0:02:08.6]} 10... Bd7 {[%clk 0:02:49.5]} 11. Be2 {[%clk
0:02:04.6]} 11... Nxf3+ {[%clk 0:02:21.6]} 12. gxf3 {[%clk 0:01:59.3]} 12... e5
{[%clk 0:02:21.8]} 13. dxe6 {[%clk 0:01:35.3]} 13... fxe6 {[%clk 0:02:22.7]} 14.
Qd2 {[%clk 0:01:28.8]} 14... Qf6 {[%clk 0:01:45.6]} 15. Be3 {[%clk 0:01:28.1]}
15... Ne7 {[%clk 0:01:38.6]} 16. O-O-O {[%clk 0:01:26.8]} 16... Bc6 {[%clk
0:01:28.8]} 17. Rhg1 {[%clk 0:01:22.5]} 17... a6 {[%clk 0:01:18]} 18. Rg4 {[%clk
0:01:08.2]} 18... O-O-O {[%clk 0:01:11.2]} 19. Rdg1 {[%clk 0:01:08]} 19... Rhg8
{[%clk 0:01:11.5]} 20. Bf2 {[%clk 0:01:03.8]} 20... Qf7 {[%clk 0:00:58.1]} 21.
Qe3 {[%clk 0:00:53.3]} 21... Rdf8 {[%clk 0:00:37]} 22. a3 {[%clk 0:00:28.8]}
22... Be5 {[%clk 0:00:30]} 23. Kb1 {[%clk 0:00:27.5]} 23... Rxg4 {[%clk
0:00:26.8]} 24. Rxg4 {[%clk 0:00:28.4]} 24... Bf4 {[%clk 0:00:25.2]} 25. Qa7
{[%clk 0:00:28.2]} 25... e5 {[%clk 0:00:22.4]} 26. Bf1 {[%clk 0:00:19.9]} 26...
Kd8 {[%clk 0:00:08]} 27. Bh3 {[%clk 0:00:19]} 27... Nc8 {[%clk 0:00:07.6]} 28.
Qb8 {[%clk 0:00:18]} 28... Bd7 {[%clk 0:00:08]} 29. Nd5 {[%clk 0:00:15.6]} 29...
Be6 {[%clk 0:00:04.9]} 30. Rg7 {[%clk 0:00:14.2]} 30... Bxh3 {[%clk 0:00:03.3]}
31. Rxf7 {[%clk 0:00:13.1]} 31... Rxf7 {[%clk 0:00:04.2]} 32. Bh4+ {[%clk
0:00:12.4]} 32... Bg5 {[%clk 0:00:04.9]} 33. Bxg5+ {[%clk 0:00:10.9]} 33... hxg5
{[%clk 0:00:05.8]} 34. Qxb7 {[%clk 0:00:09.6]} 34... Be6 {[%clk 0:00:05.9]} 35.
h6 {[%clk 0:00:08.4]} 35... Rh7 {[%clk 0:00:04.3]} 36. Qxa6 {[%clk 0:00:04.2]}
36... Bxd5 {[%clk 0:00:04]} 37. exd5 {[%clk 0:00:03.9]} 37... Rxh6 {[%clk
0:00:04.7]} 38. Qd3 {[%clk 0:00:04.2]} 38... Rf6 {[%clk 0:00:04.6]} 39. a4
{[%clk 0:00:04.1]} 39... Rf4 {[%clk 0:00:05.1]} 40. a5 {[%clk 0:00:04.2]} 40...
Ra4 {[%clk 0:00:05.4]} 41. b3 {[%clk 0:00:03.8]} 41... Rxa5 {[%clk 0:00:05.3]}
42. Qd2 {[%clk 0:00:03.2]} 42... Rc5 {[%clk 0:00:04.9]} 43. Qxg5+ {[%clk
0:00:03.4]} 43... Ne7 {[%clk 0:00:04]} 44. c4 {[%clk 0:00:04.3]} 44... Kd7
{[%clk 0:00:03.9]} 45. Qg4+ {[%clk 0:00:04.1]} 45... Kd8 {[%clk 0:00:04.2]} 46.
Kc2 {[%clk 0:00:05]} 46... Ra5 {[%clk 0:00:04.2]} 47. Kb2 {[%clk 0:00:04.8]}
47... Ra7 {[%clk 0:00:03.3]} 48. Qe6 {[%clk 0:00:04.9]} 48... Ra8 {[%clk
0:00:03.3]} 49. Qf7 {[%clk 0:00:05.3]} 49... Ra7 {[%clk 0:00:03.2]} 50. Qe6
{[%clk 0:00:05.2]} 50... Ra6 {[%clk 0:00:03.3]} 51. Kc3 {[%clk 0:00:05.9]} 51...
Rb6 {[%clk 0:00:03.4]} 52. b4 {[%clk 0:00:05.9]} 52... Ra6 {[%clk 0:00:03.9]}
53. c5 {[%clk 0:00:06.2]} 53... Ra3+ {[%clk 0:00:04.3]} 54. Kb2 {[%clk
0:00:06.4]} 54... Rxf3 {[%clk 0:00:04.4]} 55. c6 {[%clk 0:00:06.8]} 55... Rf2+
{[%clk 0:00:03.6]} 56. Kb3 {[%clk 0:00:06.9]} 56... Ke8 {[%clk 0:00:03.6]} 57.
Qd7+ {[%clk 0:00:06.6]} 57... Kf7 {[%clk 0:00:04.2]} 58. Qxc7 {[%clk 0:00:06.6]}
58... Rf3+ {[%clk 0:00:04.7]} 59. Ka4 {[%clk 0:00:06.4]} 59... Rf6 {[%clk
0:00:05.1]} 60. Qd7 {[%clk 0:00:05.5]} 60... e4 {[%clk 0:00:02.5]} 61. c7 {[%clk
0:00:05.7]} 61... Kf8 {[%clk 0:00:03.2]} 62. Qd8+ {[%clk 0:00:04.3]} 62... Kf7
{[%clk 0:00:03.1]} 63. Qxe7+ {[%clk 0:00:03.8]} 63... Kxe7 {[%clk 0:00:04]} 64.
c8=Q {[%clk 0:00:04.7]} 64... e3 {[%clk 0:00:04]} 65. Qc3 {[%clk 0:00:04.3]}
65... Rf3 {[%clk 0:00:03.7]} 66. Qd3 {[%clk 0:00:03.2]} 66... Kf6 {[%clk
0:00:03.4]} 67. Qe4 {[%clk 0:00:02.9]} 67... Rh3 {[%clk 0:00:01.4]} 68. Qf4+
{[%clk 0:00:03.2]} 68... Ke7 {[%clk 0:00:01.1]} 69. Qe4+ {[%clk 0:00:02.7]}
69... Kd8 {[%clk 0:00:01.7]} 70. b5 {[%clk 0:00:01.7]} 70... Kc7 {[%clk
0:00:02]} 71. Ka5 {[%clk 0:00:02.1]} 71... Rh8 {[%clk 0:00:01.2]} 72. b6+ {[%clk
0:00:03]} 72... Kb7 {[%clk 0:00:01.4]} 73. Qxe3 {[%clk 0:00:03.7]} 1-0

[Event "*** Titled Tuesday Blitz"]
[Site "Chess.com"]
[Date "2021.03.09"]
[Round "9"]
[White "ShahMatKanal"]
[Black "Witik"]
[Result "1-0"]
[WhiteElo "2510"]
[BlackElo "2603"]
[TimeControl "180+1"]
[EndTime "11:49:42 PST"]
[Termination "ShahMatKanal won on time"]

1. Nf3 {[%clk 0:03:00.9]} 1... d5 {[%clk 0:02:58.6]} 2. c4 {[%clk 0:03:00.1]}
2... e6 {[%clk 0:02:58.5]} 3. cxd5 {[%clk 0:02:59.3]} 3... exd5 {[%clk
0:02:58.5]} 4. d4 {[%clk 0:03:00.2]} 4... Bd6 {[%clk 0:02:56.2]} 5. Nc3 {[%clk
0:02:59.7]} 5... c6 {[%clk 0:02:56.4]} 6. Bg5 {[%clk 0:02:58.8]} 6... Qb6 {[%clk
0:02:43.8]} 7. Qd2 {[%clk 0:02:58]} 7... Bf5 {[%clk 0:02:37.5]} 8. e3 {[%clk
0:02:50.7]} 8... Nd7 {[%clk 0:02:35.1]} 9. Be2 {[%clk 0:02:37.6]} 9... Ngf6
{[%clk 0:02:32]} 10. O-O {[%clk 0:02:36.2]} 10... O-O {[%clk 0:02:28.1]} 11. a3
{[%clk 0:02:31.9]} 11... a5 {[%clk 0:02:27.7]} 12. Na4 {[%clk 0:02:22.4]} 12...
Qc7 {[%clk 0:02:25.5]} 13. Bh4 {[%clk 0:02:11.2]} 13... Ne4 {[%clk 0:02:23.4]}
14. Qc1 {[%clk 0:02:07.1]} 14... Bg4 {[%clk 0:02:06.1]} 15. Bg3 {[%clk
0:01:59.6]} 15... Nxg3 {[%clk 0:02:05.2]} 16. hxg3 {[%clk 0:02:00.5]} 16... Rfe8
{[%clk 0:01:59.2]} 17. Re1 {[%clk 0:01:46.9]} 17... h5 {[%clk 0:01:40.1]} 18.
Qc2 {[%clk 0:01:44.3]} 18... g6 {[%clk 0:01:20.8]} 19. Nh4 {[%clk 0:01:38.3]}
19... Bxe2 {[%clk 0:01:15.7]} 20. Rxe2 {[%clk 0:01:32.6]} 20... Nf6 {[%clk
0:01:12.8]} 21. Nc5 {[%clk 0:01:25.7]} 21... Kg7 {[%clk 0:01:10.5]} 22. Rc1
{[%clk 0:01:23.6]} 22... Re7 {[%clk 0:01:08.3]} 23. Nd3 {[%clk 0:01:14.2]} 23...
Rae8 {[%clk 0:01:01.6]} 24. b4 {[%clk 0:01:13.2]} 24... axb4 {[%clk 0:01:00.8]}
25. axb4 {[%clk 0:01:14.1]} 25... Ng4 {[%clk 0:00:58]} 26. Nf3 {[%clk
0:01:07.4]} 26... Qd7 {[%clk 0:00:29]} 27. Rce1 {[%clk 0:00:55.4]} 27... Qf5
{[%clk 0:00:26.8]} 28. Nc5 {[%clk 0:00:52.9]} 28... Qf6 {[%clk 0:00:25.7]} 29.
Qb3 {[%clk 0:00:46.3]} 29... b6 {[%clk 0:00:20.9]} 30. Na4 {[%clk 0:00:44.3]}
30... b5 {[%clk 0:00:17.5]} 31. Nc5 {[%clk 0:00:43.9]} 31... g5 {[%clk
0:00:17.7]} 32. e4 {[%clk 0:00:40.6]} 32... Bxc5 {[%clk 0:00:12.4]} 33. e5
{[%clk 0:00:36]} 33... Qh6 {[%clk 0:00:10.7]} 34. dxc5 {[%clk 0:00:33.9]} 34...
h4 {[%clk 0:00:11.2]} 35. Nd4 {[%clk 0:00:33.8]} 35... Qg6 {[%clk 0:00:08.4]}
36. e6 {[%clk 0:00:24.5]} 36... fxe6 {[%clk 0:00:07.9]} 37. Nxc6 {[%clk
0:00:24.8]} 37... Rf7 {[%clk 0:00:06.3]} 38. Nd4 {[%clk 0:00:22.1]} 38... e5
{[%clk 0:00:06]} 39. Nxb5 {[%clk 0:00:21.5]} 39... d4 {[%clk 0:00:04.5]} 40. Nd6
{[%clk 0:00:20.7]} 40... d3 {[%clk 0:00:03.2]} 41. Nxe8+ {[%clk 0:00:18.7]}
41... Kf8 {[%clk 0:00:03.7]} 42. Rd2 {[%clk 0:00:16.7]} 42... hxg3 {[%clk
0:00:04.1]} 43. fxg3 {[%clk 0:00:14.6]} 43... Qh5 {[%clk 0:00:04.3]} 44. Qxf7+
{[%clk 0:00:12.7]} 44... Kxf7 {[%clk 0:00:04.2]} 45. Nd6+ {[%clk 0:00:11.8]}
45... Ke6 {[%clk 0:00:04.6]} 46. Rxd3 {[%clk 0:00:12.7]} 46... Qh2+ {[%clk
0:00:04.6]} 47. Kf1 {[%clk 0:00:13.1]} 47... Qh1+ {[%clk 0:00:05.1]} 48. Ke2
{[%clk 0:00:13.6]} 48... Qxg2+ {[%clk 0:00:06]} 49. Kd1 {[%clk 0:00:14.1]} 49...
Nf2+ {[%clk 0:00:06.4]} 50. Kc2 {[%clk 0:00:13.4]} 50... Nxd3+ {[%clk
0:00:06.8]} 51. Kxd3 {[%clk 0:00:14.3]} 51... Qxg3+ {[%clk 0:00:06.8]} 52. Re3
{[%clk 0:00:15]} 52... Qg1 {[%clk 0:00:06.4]} 53. Nc4 {[%clk 0:00:14.1]} 53...
Qd1+ {[%clk 0:00:06.1]} 54. Kc3 {[%clk 0:00:14.5]} 54... Qc1+ {[%clk 0:00:06]}
55. Kb3 {[%clk 0:00:14.1]} 55... Qd1+ {[%clk 0:00:05.4]} 56. Kc3 {[%clk
0:00:14]} 56... Qa1+ {[%clk 0:00:05.3]} 57. Kb3 {[%clk 0:00:13.8]} 57... Kf5
{[%clk 0:00:05.1]} 58. Rxe5+ {[%clk 0:00:12.3]} 58... Kf4 {[%clk 0:00:05.1]} 59.
Re3 {[%clk 0:00:06.1]} 59... g4 {[%clk 0:00:05]} 60. c6 {[%clk 0:00:05.6]} 60...
Qd1+ {[%clk 0:00:04.7]} 61. Kc3 {[%clk 0:00:05.3]} 61... Qc1+ {[%clk 0:00:04.6]}
62. Kd4 {[%clk 0:00:05.6]} 62... Qd1+ {[%clk 0:00:04.3]} 63. Kc5 {[%clk
0:00:05.6]} 63... Qd8 {[%clk 0:00:04.5]} 64. b5 {[%clk 0:00:05.2]} 64... g3
{[%clk 0:00:04.6]} 65. Rxg3 {[%clk 0:00:04.4]} 65... Kxg3 {[%clk 0:00:04.5]} 66.
b6 {[%clk 0:00:05.3]} 66... Kf4 {[%clk 0:00:04.8]} 67. c7 {[%clk 0:00:04.9]}
67... Qe7+ {[%clk 0:00:04]} 68. Nd6 {[%clk 0:00:05.1]} 68... Qe5+ {[%clk
0:00:04.1]} 69. Kc6 {[%clk 0:00:05.4]} 69... Qc3+ {[%clk 0:00:04.1]} 70. Kd7
{[%clk 0:00:05.2]} 70... Qg7+ {[%clk 0:00:04.3]} 71. Kc6 {[%clk 0:00:05.2]}
71... Qc3+ {[%clk 0:00:02.8]} 72. Kb7 {[%clk 0:00:05.5]} 72... Qf3+ {[%clk
0:00:02.6]} 73. Kb8 {[%clk 0:00:05.6]} 1-0

[Event "*** Titled Tuesday Blitz"]
[Site "Chess.com"]
[Date "2021.03.09"]
[Round "9"]
[White "azikom"]
[Black "Semen_Khanin"]
[Result "1-0"]
[WhiteElo "2656"]
[BlackElo "2825"]
[TimeControl "180+1"]
[EndTime "11:49:45 PST"]
[Termination "azikom won by resignation"]

1. d4 {[%clk 0:03:00.9]} 1... Nf6 {[%clk 0:02:59.6]} 2. Nf3 {[%clk 0:03:00.3]}
2... g6 {[%clk 0:02:59.3]} 3. g3 {[%clk 0:02:58.3]} 3... Bg7 {[%clk 0:02:59.6]}
4. Bg2 {[%clk 0:02:59.2]} 4... O-O {[%clk 0:03:00.2]} 5. O-O {[%clk 0:02:59.6]}
5... d5 {[%clk 0:02:57.5]} 6. Nbd2 {[%clk 0:02:58.5]} 6... Bf5 {[%clk
0:02:52.5]} 7. c4 {[%clk 0:02:56.5]} 7... dxc4 {[%clk 0:02:52.7]} 8. Nxc4 {[%clk
0:02:55.7]} 8... Be4 {[%clk 0:02:53.1]} 9. Nce5 {[%clk 0:02:51.2]} 9... Nbd7
{[%clk 0:02:52]} 10. Qb3 {[%clk 0:02:46.8]} 10... c5 {[%clk 0:02:46.7]} 11. dxc5
{[%clk 0:02:33.6]} 11... Nxc5 {[%clk 0:02:44.4]} 12. Qa3 {[%clk 0:02:33]} 12...
Qd5 {[%clk 0:02:43.2]} 13. Be3 {[%clk 0:02:27.5]} 13... Ne6 {[%clk 0:02:25.6]}
14. Qxe7 {[%clk 0:01:57.9]} 14... Qb5 {[%clk 0:02:17.7]} 15. Nxf7 {[%clk
0:01:13.4]} 15... Rae8 {[%clk 0:02:10.5]} 16. Nd6 {[%clk 0:01:12.6]} 16... Qb4
{[%clk 0:02:10.9]} 17. a3 {[%clk 0:01:12.3]} 17... Qxb2 {[%clk 0:01:51.6]} 18.
Nxe8 {[%clk 0:01:11.3]} 18... Rxe8 {[%clk 0:01:52.1]} 19. Qb4 {[%clk 0:01:08.5]}
19... Qxe2 {[%clk 0:01:44.8]} 20. Rfe1 {[%clk 0:01:03]} 20... Qa6 {[%clk
0:01:41.1]} 21. Rad1 {[%clk 0:00:57.7]} 21... Nc7 {[%clk 0:01:38.5]} 22. Qd6
{[%clk 0:00:40.1]} 22... Qxd6 {[%clk 0:01:32.1]} 23. Rxd6 {[%clk 0:00:39.3]}
23... Ncd5 {[%clk 0:01:32.4]} 24. Bd4 {[%clk 0:00:15.2]} 24... Bxf3 {[%clk
0:01:26.6]} 25. Rxe8+ {[%clk 0:00:14.6]} 25... Nxe8 {[%clk 0:01:27.1]} 26. Bxf3
{[%clk 0:00:14.8]} 26... Nxd6 {[%clk 0:01:26.4]} 27. Bxd5+ {[%clk 0:00:15.4]}
27... Kf8 {[%clk 0:01:26.8]} 28. Bxa7 {[%clk 0:00:15.1]} 28... Ke7 {[%clk
0:01:23]} 29. Bc5 {[%clk 0:00:14.5]} 29... b5 {[%clk 0:01:12.9]} 30. Bc6 {[%clk
0:00:14.1]} 30... Ke6 {[%clk 0:01:07.1]} 31. Bxd6 {[%clk 0:00:13.8]} 31... Kxd6
{[%clk 0:01:07.3]} 32. Bxb5 {[%clk 0:00:14.5]} 32... g5 {[%clk 0:01:04.9]} 33.
a4 {[%clk 0:00:14.8]} 33... Bd4 {[%clk 0:01:04.9]} 34. Kg2 {[%clk 0:00:15.1]}
34... Ke5 {[%clk 0:01:02.1]} 35. Bd3 {[%clk 0:00:14.4]} 35... h6 {[%clk
0:01:01.3]} 36. a5 {[%clk 0:00:14.5]} 36... Ba7 {[%clk 0:01:00.9]} 37. a6 {[%clk
0:00:14.9]} 37... Bb6 {[%clk 0:01:01.1]} 38. f3 {[%clk 0:00:13.8]} 38... Ba7
{[%clk 0:01:00.2]} 39. Bb5 {[%clk 0:00:14.2]} 39... Kf5 {[%clk 0:00:57.6]} 40.
Be8 {[%clk 0:00:15.1]} 40... Ke5 {[%clk 0:00:57.3]} 41. Bh5 {[%clk 0:00:15.5]}
41... Kf5 {[%clk 0:00:57.5]} 42. Bg4+ {[%clk 0:00:15.8]} 42... Ke5 {[%clk
0:00:57.1]} 43. Kf1 {[%clk 0:00:16.5]} 43... Kd4 {[%clk 0:00:25.8]} 44. Ke2
{[%clk 0:00:17.4]} 44... Bb8 {[%clk 0:00:25.1]} 45. Bh5 {[%clk 0:00:16.5]} 45...
Ba7 {[%clk 0:00:21.2]} 46. Bg6 {[%clk 0:00:16.6]} 46... Bb8 {[%clk 0:00:21.3]}
47. f4 {[%clk 0:00:15.5]} 47... gxf4 {[%clk 0:00:20.8]} 48. gxf4 {[%clk
0:00:15.6]} 48... Kc5 {[%clk 0:00:19.5]} 49. Kf3 {[%clk 0:00:15.6]} 49... Kd4
{[%clk 0:00:16]} 50. Be8 {[%clk 0:00:15]} 50... Kd5 {[%clk 0:00:14.1]} 51. h4
{[%clk 0:00:13.7]} 51... Ba7 {[%clk 0:00:10.8]} 52. Bg6 {[%clk 0:00:13]} 52...
Kd4 {[%clk 0:00:10.7]} 53. h5 {[%clk 0:00:13.3]} 53... Kd5 {[%clk 0:00:10.9]}
54. Bf7+ {[%clk 0:00:13.2]} 54... Kd4 {[%clk 0:00:09.9]} 55. Be8 {[%clk
0:00:12.9]} 55... Kd5 {[%clk 0:00:10.1]} 56. Bb5 {[%clk 0:00:12]} 56... Bb6
{[%clk 0:00:09.9]} 57. f5 {[%clk 0:00:11.2]} 57... Ke5 {[%clk 0:00:09.8]} 58.
Bd7 {[%clk 0:00:10.7]} 58... Ba7 {[%clk 0:00:08.6]} 59. Ke2 {[%clk 0:00:10.6]}
59... Kf6 {[%clk 0:00:08.3]} 60. Kd3 {[%clk 0:00:10.6]} 60... Kg5 {[%clk
0:00:08.6]} 61. Ke4 {[%clk 0:00:11.1]} 61... Kf6 {[%clk 0:00:06.4]} 62. Kd5
{[%clk 0:00:10.6]} 62... Kg5 {[%clk 0:00:06.6]} 63. Ke6 {[%clk 0:00:10.6]} 63...
Kxh5 {[%clk 0:00:04.1]} 64. f6 {[%clk 0:00:10.7]} 64... Kg6 {[%clk 0:00:04.5]}
65. Be8+ {[%clk 0:00:10.6]} 65... Kh7 {[%clk 0:00:04.8]} 66. Bh5 {[%clk
0:00:10.1]} 66... Kg8 {[%clk 0:00:04.8]} 67. f7+ {[%clk 0:00:09.8]} 67... Kf8
{[%clk 0:00:04.5]} 68. Kd7 {[%clk 0:00:10.2]} 68... Bb6 {[%clk 0:00:04.2]} 69.
Kc6 {[%clk 0:00:11.1]} 69... Ba7 {[%clk 0:00:04.3]} 70. Kb7 {[%clk 0:00:11.6]}
70... Be3 {[%clk 0:00:04.4]} 71. a7 {[%clk 0:00:12.1]} 71... Bxa7 {[%clk
0:00:04.7]} 72. Kxa7 {[%clk 0:00:12.6]} 72... Ke7 {[%clk 0:00:05]} 73. Kb7
{[%clk 0:00:13.5]} 73... Kf8 {[%clk 0:00:05.2]} 74. Kc7 {[%clk 0:00:14.4]} 74...
Ke7 {[%clk 0:00:05.8]} 75. Kc6 {[%clk 0:00:15.2]} 75... Kf8 {[%clk 0:00:06.2]}
76. Kd6 {[%clk 0:00:15.9]} 1-0